[Event "Kadrioru MK Open B"]
[Site "Tallinn, Paul Keres Chess House, Estonia"]
[Date "2023.02.12"]
[Round "4.1"]
[White "Gorkov, Kirill"]
[Black "Leht, Karl Samuel"]
[Result "1-0"]
[TimeControl "60 minutes with 30 second increment from move 1"]
[WhiteElo "1490"]
[BlackElo "1150"]

1. e4 {

[%clk 01:00:59]

} {

[%emt 00:25:28]

} e5 {

[%clk 01:00:54]

} {

[%emt 00:00:07]

} 2. Nf3 {

[%clk 01:01:24]

} {

[%emt 00:00:04]

} Nc6 {

[%clk 01:01:18]

} {

[%emt 00:00:06]

} 3. Bb5 {

[%clk 01:01:49]

} {

[%emt 00:00:05]

} Nf6 {

[%clk 01:01:36]

} {

[%emt 00:00:12]

} 4. O-O {

[%clk 01:02:13]

} {

[%emt 00:00:07]

} Nxe4 {

[%clk 01:01:41]

} {

[%emt 00:00:24]

} 5. d4 {

[%clk 01:02:31]

} {

[%emt 00:00:12]

} Nd6 {

[%clk 01:00:35]

} {

[%emt 00:01:36]

} 6. Bxc6 {

[%clk 01:00:37]

} {

[%emt 00:02:25]

} dxc6 {

[%clk 01:00:40]

} {

[%emt 00:00:24]

} 7. Nxe5 {

[%clk 00:59:03]

} {

[%emt 00:02:04]

} Be7 {

[%clk 01:00:10]

} {

[%emt 00:01:00]

} 8. c3 {

[%clk 00:58:13]

} {

[%emt 00:01:20]

} O-O {

[%clk 00:58:00]

} {

[%emt 00:02:40]

} 9. Bf4 {

[%clk 00:57:12]

} {

[%emt 00:01:31]

} Bg5 {

[%clk 00:55:42]

} {

[%emt 00:02:48]

} 10. Bg3 {

[%clk 00:51:46]

} {

[%emt 00:05:56]

} f5 {

[%clk 00:50:41]

} {

[%emt 00:05:30]

} 11. f4 {

[%clk 00:50:24]

} {

[%emt 00:01:53]

} Bh4 {

[%clk 00:49:36]

} {

[%emt 00:01:35]

} 12. Rf3 {

[%clk 00:48:42]

} {

[%emt 00:02:12]

} Ne4 {

[%clk 00:47:49]

} {

[%emt 00:02:16]

} 13. Bxh4 {

[%clk 00:48:50]

} {

[%emt 00:00:22]

} Qxh4 {

[%clk 00:48:01]

} {

[%emt 00:00:18]

} 14. Qb3+ {

[%clk 00:49:14]

} {

[%emt 00:00:07]

} Kh8 {

[%clk 00:47:45]

} {

[%emt 00:00:45]

} 15. Ng6+ {

[%clk 00:48:50]

} {

[%emt 00:00:53]

} hxg6 {

[%clk 00:47:39]

} {

[%emt 00:00:37]

} 16. Rh3 {

[%clk 00:49:18]

} {

[%emt 00:00:03]

} Qxh3 {

[%clk 00:48:00]

} {

[%emt 00:00:09]

} 17. gxh3 {

[%clk 00:49:42]

} {

[%emt 00:00:06]

} Rb8 {

[%clk 00:47:27]

} {

[%emt 00:01:03]

} 18. Na3 {

[%clk 00:48:50]

} {

[%emt 00:01:22]

} b6 {

[%clk 00:47:25]

} {

[%emt 00:00:32]

} 19. Re1 {

[%clk 00:48:26]

} {

[%emt 00:00:54]

} Ba6 {

[%clk 00:47:14]

} {

[%emt 00:00:40]

} 20. Nc4 {

[%clk 00:47:52]

} {

[%emt 00:01:05]

} c5 {

[%clk 00:46:32]

} {

[%emt 00:01:11]

} 21. Ne5 {

[%clk 00:48:04]

} {

[%emt 00:00:18]

} Rfe8 {

[%clk 00:45:35]

} {

[%emt 00:01:27]

} 22. Nxg6+ {

[%clk 00:46:57]

} {

[%emt 00:01:36]

} Kh7 {

[%clk 00:45:43]

} {

[%emt 00:00:22]

} 23. Ne5 {

[%clk 00:46:49]

} {

[%emt 00:00:38]

} Bf1 {

[%clk 00:44:39]

} {

[%emt 00:01:34]

} 24. Rxf1 {

[%clk 00:46:24]

} {

[%emt 00:00:56]

} Nd2 {

[%clk 00:44:50]

} {

[%emt 00:00:19]

} 25. Qf7 {

[%clk 00:46:38]

} {

[%emt 00:00:14]

} Nxf1 {

[%clk 00:44:34]

} {

[%emt 00:00:47]

} 26. Qxf5+ {

[%clk 00:46:45]

} {

[%emt 00:00:24]

} Kg8 {

[%clk 00:44:16]

} {

[%emt 00:00:47]

} 27. Kxf1 {

[%clk 00:47:04]

} {

[%emt 00:00:11]

} Rf8 {

[%clk 00:43:54]

} {

[%emt 00:00:52]

} 28. Qe6+ {

[%clk 00:46:50]

} {

[%emt 00:00:43]

} Kh7 {

[%clk 00:43:59]

} {

[%emt 00:00:25]

} 29. Qg6+ {

[%clk 00:45:49]

} {

[%emt 00:01:31]

} Kg8 {

[%clk 00:44:09]

} {

[%emt 00:00:20]

} 30. Qe4 {

[%clk 00:45:40]

} {

[%emt 00:00:39]

} Rxf4+ {

[%clk 00:43:27]

} {

[%emt 00:01:12]

} 31. Qxf4 {

[%clk 00:46:01]

} {

[%emt 00:00:09]

} Rf8 {

[%clk 00:43:41]

} {

[%emt 00:00:15]

} 32. Qxf8+ {

[%clk 00:46:26]

} {

[%emt 00:00:06]

} Kxf8 {

[%clk 00:44:01]

} {

[%emt 00:00:11]

} 33. dxc5 {

[%clk 00:46:42]

} {

[%emt 00:00:14]

} bxc5 {

[%clk 00:43:36]

} {

[%emt 00:00:55]

} 34. Nd7+ {

[%clk 00:47:08]

} {

[%emt 00:00:04]

} Ke7 {

[%clk 00:43:48]

} {

[%emt 00:00:18]

} 35. Nxc5 {

[%clk 00:47:32]

} {

[%emt 00:00:06]

} Kd6 {

[%clk 00:43:48]

} {

[%emt 00:00:30]

} 36. Nd3 {

[%clk 00:47:54]

} {

[%emt 00:00:08]

} Kd5 {

[%clk 00:44:08]

} {

[%emt 00:00:10]

} 37. Ke2 {

[%clk 00:48:12]

} {

[%emt 00:00:12]

} Ke4 {

[%clk 00:44:30]

} {

[%emt 00:00:08]

} 38. Nc5+ {

[%clk 00:48:02]

} {

[%emt 00:00:40]

} Kf5 {

[%clk 00:44:47]

} {

[%emt 00:00:13]

} 39. Ke3 {

[%clk 00:48:02]

} {

[%emt 00:00:29]

} g6 {

[%clk 00:44:19]

} {

[%emt 00:00:58]

} 40. Na6 {

[%clk 00:48:02]

} {

[%emt 00:00:30]

} 1-0

[Event "Kadrioru MK Open B"]
[Site "Tallinn, Paul Keres Chess House, Estonia"]
[Date "2023.02.12"]
[Round "4.2"]
[White "Magi, Ramon"]
[Black "Beniosev, Daniel"]
[Result "0-1"]
[TimeControl "60 minutes with 30 second increment from move 1"]
[WhiteElo "1265"]
[BlackElo "1464"]

1. d4 {

[%clk 01:00:56]

} {

[%emt 00:00:03]

} Nf6 {

[%clk 00:59:40]

} {

[%emt 00:01:12]

} 2. c4 {

[%clk 01:01:15]

} {

[%emt 00:00:20]

} c5 {

[%clk 00:59:57]

} {

[%emt 00:00:12]

} 3. d5 {

[%clk 01:01:04]

} {

[%emt 00:00:43]

} e6 {

[%clk 00:59:52]

} {

[%emt 00:00:34]

} 4. Nc3 {

[%clk 01:00:55]

} {

[%emt 00:00:39]

} exd5 {

[%clk 00:59:57]

} {

[%emt 00:00:26]

} 5. Nxd5 {

[%clk 01:00:54]

} {

[%emt 00:00:32]

} Nxd5 {

[%clk 00:57:13]

} {

[%emt 00:03:14]

} 6. Qxd5 {

[%clk 00:59:05]

} {

[%emt 00:02:18]

} d6 {

[%clk 00:56:12]

} {

[%emt 00:01:32]

} 7. Nf3 {

[%clk 00:54:23]

} {

[%emt 00:05:11]

} Nc6 {

[%clk 00:56:09]

} {

[%emt 00:00:34]

} 8. e3 {

[%clk 00:53:22]

} {

[%emt 00:01:31]

} Be6 {

[%clk 00:54:10]

} {

[%emt 00:02:29]

} 9. Qd2 {

[%clk 00:51:49]

} {

[%emt 00:02:02]

} Qf6 {

[%clk 00:52:01]

} {

[%emt 00:02:38]

} 10. Rb1 {

[%clk 00:49:03]

} {

[%emt 00:03:17]

} Bf5 {

[%clk 00:52:23]

} {

[%emt 00:00:07]

} 11. Bd3 {

[%clk 00:49:06]

} {

[%emt 00:00:20]

} Nb4 {

[%clk 00:52:50]

} {

[%emt 00:00:10]

} 12. e4 {

[%clk 00:47:27]

} {

[%emt 00:02:10]

} Nxd3+ {

[%clk 00:52:09]

} {

[%emt 00:01:10]

} 13. Qxd3 {

[%clk 00:47:43]

} {

[%emt 00:00:14]

} Bg6 {

[%clk 00:52:19]

} {

[%emt 00:00:20]

} 14. Be3 {

[%clk 00:44:10]

} {

[%emt 00:04:02]

} Qe7 {

[%clk 00:51:30]

} {

[%emt 00:01:20]

} 15. Nd2 {

[%clk 00:43:24]

} {

[%emt 00:01:16]

} Qe6 {

[%clk 00:51:13]

} {

[%emt 00:00:46]

} 16. Qd5 {

[%clk 00:42:02]

} {

[%emt 00:01:49]

} Qxd5 {

[%clk 00:49:10]

} {

[%emt 00:02:36]

} 17. cxd5 {

[%clk 00:42:16]

} {

[%emt 00:00:16]

} b5 {

[%clk 00:48:53]

} {

[%emt 00:00:47]

} 18. b3 {

[%clk 00:36:56]

} {

[%emt 00:05:50]

} Be7 {

[%clk 00:48:42]

} {

[%emt 00:00:40]

} 19. O-O {

[%clk 00:37:15]

} {

[%emt 00:00:12]

} O-O {

[%clk 00:49:00]

} {

[%emt 00:00:11]

} 20. f3 {

[%clk 00:35:29]

} {

[%emt 00:02:17]

} f5 {

[%clk 00:43:30]

} {

[%emt 00:06:00]

} 21. Rbc1 {

[%clk 00:30:51]

} {

[%emt 00:05:08]

} f4 {

[%clk 00:42:11]

} {

[%emt 00:01:47]

} 22. Bf2 {

[%clk 00:30:48]

} {

[%emt 00:00:33]

} Bf6 {

[%clk 00:42:38]

} {

[%emt 00:00:04]

} 23. Rc2 {

[%clk 00:29:06]

} {

[%emt 00:02:12]

} Rfe8 {

[%clk 00:40:56]

} {

[%emt 00:02:11]

} 24. Rb1 {

[%clk 00:24:41]

} {

[%emt 00:04:54]

} Re5 {

[%clk 00:36:04]

} {

[%emt 00:05:24]

} 25. Rbc1 {

[%clk 00:22:28]

} {

[%emt 00:02:44]

} Re7 {

[%clk 00:33:39]

} {

[%emt 00:02:54]

} 26. h3 {

[%clk 00:21:01]

} {

[%emt 00:01:58]

} Bf7 {

[%clk 00:32:32]

} {

[%emt 00:01:37]

} 27. a3 {

[%clk 00:19:16]

} {

[%emt 00:02:15]

} g5 {

[%clk 00:32:00]

} {

[%emt 00:01:00]

} 28. Kf1 {

[%clk 00:18:35]

} {

[%emt 00:01:13]

} h5 {

[%clk 00:32:08]

} {

[%emt 00:00:20]

} 29. Ke2 {

[%clk 00:18:53]

} {

[%emt 00:00:14]

} Bxd5 {

[%clk 00:32:30]

} {

[%emt 00:00:09]

} 30. b4 {

[%clk 00:17:10]

} {

[%emt 00:02:13]

} c4 {

[%clk 00:32:42]

} {

[%emt 00:00:16]

} 31. Nb1 {

[%clk 00:17:29]

} {

[%emt 00:00:13]

} Bc6 {

[%clk 00:32:20]

} {

[%emt 00:00:51]

} 32. Nc3 {

[%clk 00:17:39]

} {

[%emt 00:00:21]

} d5 {

[%clk 00:32:43]

} {

[%emt 00:00:08]

} 33. Bc5 {

[%clk 00:17:26]

} {

[%emt 00:00:42]

} Re6 {

[%clk 00:33:02]

} {

[%emt 00:00:12]

} 34. Rd1 {

[%clk 00:14:14]

} {

[%emt 00:03:42]

} Rd8 {

[%clk 00:33:11]

} {

[%emt 00:00:20]

} 35. Kf2 {

[%clk 00:13:39]

} {

[%emt 00:01:04]

} d4 {

[%clk 00:33:30]

} {

[%emt 00:00:12]

} 36. Nd5 {

[%clk 00:11:20]

} {

[%emt 00:02:49]

} Bxd5 {

[%clk 00:33:35]

} {

[%emt 00:00:24]

} 37. exd5 {

[%clk 00:11:39]

} {

[%emt 00:00:12]

} Rxd5 {

[%clk 00:33:50]

} {

[%emt 00:00:15]

} 38. Bxa7 {

[%clk 00:11:46]

} {

[%emt 00:00:24]

} d3 {

[%emt 00:03:23]

} 39. Rcd2 {

[%clk 00:06:24]

} {

[%emt 00:02:36]

} c3 {

[%clk 00:34:27]

} {

[%emt 00:00:16]

} 40. Ra2 {

[%clk 00:06:29]

} {

[%emt 00:00:07]

} c2 {

[%clk 00:34:53]

} {

[%emt 00:00:20]

} 41. Rc1 {

[%clk 00:06:48]

} {

[%emt 00:00:08]

} d2 {

[%emt 00:00:30]

} 42. Raxc2 {

[%clk 00:07:03]

} {

[%emt 00:00:13]

} dxc1=Q {

[%clk 00:35:17]

} {

[%emt 00:00:15]

} 43. Rxc1 {

[%clk 00:07:10]

} {

[%emt 00:00:24]

} Ra6 {

[%clk 00:35:32]

} {

[%emt 00:00:15]

} 44. Bc5 {

[%clk 00:06:52]

} {

[%emt 00:00:48]

} Rxa3 {

[%clk 00:35:56]

} {

[%emt 00:00:06]

} 45. Re1 {

[%clk 00:06:33]

} {

[%emt 00:00:45]

} Kf7 {

[%clk 00:36:21]

} {

[%emt 00:00:08]

} 46. Re4 {

[%clk 00:06:29]

} {

[%emt 00:00:28]

} Ra2+ {

[%clk 00:36:47]

} {

[%emt 00:00:11]

} 47. Kg1 {

[%clk 00:06:38]

} {

[%emt 00:00:17]

} Rdd2 {

[%clk 00:37:16]

} {

[%emt 00:00:06]

} 48. Kh1 {

[%clk 00:04:53]

} {

[%emt 00:02:15]

} Rxg2 {

[%clk 00:37:38]

} {

[%emt 00:00:07]

} 49. Bg1 {

[%clk 00:04:51]

} {

[%emt 00:00:29]

} Rg3 {

[%clk 00:37:41]

} {

[%emt 00:00:30]

} 50. Re1 {

[%clk 00:05:07]

} {

[%emt 00:00:14]

} Rxh3+ {

[%clk 00:38:05]

} {

[%emt 00:00:06]

} 51. Bh2 {

[%clk 00:05:25]

} {

[%emt 00:00:12]

} Rhxh2+ {

[%clk 00:38:24]

} {

[%emt 00:00:11]

} 52. Kg1 {

[%clk 00:05:33]

} {

[%emt 00:00:22]

} Bd4+ {

[%clk 00:38:53]

} {

[%emt 00:00:01]

} 0-1

[Event "Kadrioru MK Open B"]
[Site "Tallinn, Paul Keres Chess House, Estonia"]
[Date "2023.02.12"]
[Round "5.1"]
[White "Vorobyov, Radmir"]
[Black "Gorkov, Kirill"]
[Result "0-1"]
[TimeControl "60 minutes with 30 second increment from move 1"]
[WhiteElo "1573"]
[BlackElo "1490"]

1. d4 {

[%clk 01:00:57]

} {

[%emt 00:00:02]

} f5 {

[%clk 01:00:53]

} {

[%emt 00:00:09]

} 2. Nf3 {

[%clk 01:01:14]

} {

[%emt 00:00:11]

} Nf6 {

[%clk 01:01:18]

} {

[%emt 00:00:05]

} 3. c4 {

[%clk 01:01:15]

} {

[%emt 00:00:31]

} g6 {

[%clk 01:01:44]

} {

[%emt 00:00:03]

} 4. b3 {

[%clk 01:00:43]

} {

[%emt 00:01:03]

} Bg7 {

[%clk 01:02:09]

} {

[%emt 00:00:05]

} 5. Bb2 {

[%clk 01:01:02]

} {

[%emt 00:00:10]

} O-O {

[%clk 01:02:33]

} {

[%emt 00:00:06]

} 6. g3 {

[%clk 00:58:58]

} {

[%emt 00:02:34]

} d6 {

[%clk 01:02:49]

} {

[%emt 00:00:14]

} 7. Bg2 {

[%clk 00:55:58]

} {

[%emt 00:03:29]

} c6 {

[%clk 01:02:41]

} {

[%emt 00:00:38]

} 8. O-O {

[%clk 00:53:36]

} {

[%emt 00:02:52]

} Ne4 {

[%clk 00:58:23]

} {

[%emt 00:04:49]

} 9. Nc3 {

[%clk 00:49:08]

} {

[%emt 00:04:58]

} Nxc3 {

[%clk 00:56:46]

} {

[%emt 00:02:08]

} 10. Bxc3 {

[%clk 00:49:32]

} {

[%emt 00:00:06]

} d5 {

[%clk 00:52:28]

} {

[%emt 00:04:48]

} 11. cxd5 {

[%clk 00:44:47]

} {

[%emt 00:05:14]

} cxd5 {

[%clk 00:52:48]

} {

[%emt 00:00:10]

} 12. Ne5 {

[%clk 00:45:01]

} {

[%emt 00:00:16]

} e6 {

[%clk 00:51:59]

} {

[%emt 00:01:19]

} 13. f4 {

[%clk 00:43:55]

} {

[%emt 00:01:36]

} Nd7 {

[%clk 00:52:01]

} {

[%emt 00:00:28]

} 14. Rc1 {

[%clk 00:40:14]

} {

[%emt 00:04:10]

} Nxe5 {

[%clk 00:51:23]

} {

[%emt 00:01:08]

} 15. dxe5 {

[%clk 00:40:00]

} {

[%emt 00:00:44]

} Bd7 {

[%clk 00:51:23]

} {

[%emt 00:00:30]

} 16. Qd2 {

[%clk 00:37:50]

} {

[%emt 00:02:40]

} Bc6 {

[%clk 00:50:29]

} {

[%emt 00:01:25]

} 17. b4 {

[%clk 00:35:25]

} {

[%emt 00:02:56]

} Rc8 {

[%clk 00:47:42]

} {

[%emt 00:03:16]

} 18. Bd4 {

[%clk 00:34:05]

} {

[%emt 00:01:49]

} a6 {

[%clk 00:47:09]

} {

[%emt 00:01:04]

} 19. Qe3 {

[%clk 00:31:31]

} {

[%emt 00:03:04]

} Re8 {

[%clk 00:45:20]

} {

[%emt 00:02:19]

} 20. Qb3 {

[%clk 00:29:25]

} {

[%emt 00:02:36]

} Qd7 {

[%clk 00:45:12]

} {

[%emt 00:00:38]

} 21. h3 {

[%clk 00:29:03]

} {

[%emt 00:00:52]

} Bb5 {

[%clk 00:43:58]

} {

[%emt 00:01:45]

} 22. Qb2 {

[%clk 00:24:50]

} {

[%emt 00:04:42]

} Rxc1 {

[%clk 00:42:34]

} {

[%emt 00:01:53]

} 23. Rxc1 {

[%clk 00:24:59]

} {

[%emt 00:00:22]

} Rc8 {

[%clk 00:42:48]

} {

[%emt 00:00:17]

} 24. e3 {

[%clk 00:20:26]

} {

[%emt 00:05:03]

} Bf8 {

[%clk 00:41:48]

} {

[%emt 00:01:30]

} 25. Rxc8 {

[%clk 00:15:42]

} {

[%emt 00:05:13]

} Qxc8 {

[%clk 00:42:11]

} {

[%emt 00:00:08]

} 26. Qc3 {

[%clk 00:15:46]

} {

[%emt 00:00:25]

} Qxc3 {

[%clk 00:41:58]

} {

[%emt 00:00:43]

} 27. Bxc3 {

[%clk 00:16:11]

} {

[%emt 00:00:05]

} Kf7 {

[%clk 00:42:18]

} {

[%emt 00:00:10]

} 28. Bf1 {

[%clk 00:15:56]

} {

[%emt 00:00:44]

} Bxf1 {

[%clk 00:41:46]

} {

[%emt 00:01:02]

} 29. Kxf1 {

[%clk 00:16:21]

} {

[%emt 00:00:05]

} Ke8 {

[%clk 00:42:03]

} {

[%emt 00:00:13]

} 30. Ke2 {

[%clk 00:13:37]

} {

[%emt 00:03:14]

} Kd7 {

[%clk 00:42:16]

} {

[%emt 00:00:17]

} 31. Kd3 {

[%clk 00:11:54]

} {

[%emt 00:02:12]

} Kc6 {

[%clk 00:41:57]

} {

[%emt 00:00:48]

} 32. a4 {

[%clk 00:11:22]

} {

[%emt 00:01:02]

} b6 {

[%clk 00:41:37]

} {

[%emt 00:00:51]

} 33. g4 {

[%clk 00:08:38]

} {

[%emt 00:03:13]

} b5 {

[%clk 00:25:49]

} {

[%emt 00:16:18]

} 34. a5 {

[%clk 00:08:59]

} {

[%emt 00:00:10]

} fxg4 {

[%clk 00:19:33]

} {

[%emt 00:06:46]

} 35. hxg4 {

[%clk 00:09:24]

} {

[%emt 00:00:04]

} h5 {

[%clk 00:19:44]

} {

[%emt 00:00:19]

} 36. gxh5 {

[%clk 00:09:46]

} {

[%emt 00:00:08]

} gxh5 {

[%clk 00:20:10]

} {

[%emt 00:00:04]

} 37. Ke2 {

[%clk 00:07:54]

} {

[%emt 00:02:22]

} Be7 {

[%clk 00:19:45]

} {

[%emt 00:00:55]

} 38. Be1 {

[%clk 00:07:32]

} {

[%emt 00:00:52]

} Kd7 {

[%clk 00:19:50]

} {

[%emt 00:00:26]

} 39. Kf3 {

[%clk 00:06:44]

} {

[%emt 00:01:17]

} Ke8 {

[%clk 00:19:49]

} {

[%emt 00:00:31]

} 40. f5 {

[%clk 00:04:17]

} {

[%emt 00:02:56]

} exf5 {

[%clk 00:18:50]

} {

[%emt 00:01:30]

} 41. Kf4 {

[%clk 00:04:37]

} {

[%emt 00:00:10]

} h4 {

[%clk 00:18:44]

} {

[%emt 00:00:36]

} 42. e6 {

[%clk 00:02:17]

} {

[%emt 00:02:50]

} h3 {

[%clk 00:18:33]

} {

[%emt 00:00:42]

} 43. Kf3 {

[%clk 00:01:35]

} {

[%emt 00:01:12]

} Bd6 {

[%clk 00:18:47]

} {

[%emt 00:00:16]

} 44. Bc3 {

[%clk 00:01:00]

} {

[%emt 00:01:04]

} Ke7 {

[%clk 00:18:41]

} {

[%emt 00:00:36]

} 45. Bd2 {

[%clk 00:01:18]

} {

[%emt 00:00:13]

} Kxe6 {

[%clk 00:18:59]

} {

[%emt 00:00:12]

} 46. Bc3 {

[%clk 00:01:35]

} {

[%emt 00:00:12]

} Be5 {

[%clk 00:18:44]

} {

[%emt 00:00:45]

} 47. Bd2 {

[%clk 00:01:50]

} {

[%emt 00:00:15]

} h2 {

[%emt 00:00:06]

} 48. Kg2 {

[%clk 00:02:15]

} {

[%emt 00:00:04]

} Kf6 {

[%clk 00:19:14]

} {

[%emt 00:00:26]

} 49. Be1 {

[%clk 00:02:23]

} {

[%emt 00:00:22]

} Kg5 {

[%clk 00:19:22]

} {

[%emt 00:00:23]

} 50. Bd2 {

[%clk 00:02:38]

} {

[%emt 00:00:15]

} Kg4 {

[%clk 00:19:44]

} {

[%emt 00:00:07]

} 51. Be1 {

[%clk 00:03:01]

} {

[%emt 00:00:07]

} f4 {

[%clk 00:19:52]

} {

[%emt 00:00:23]

} 52. exf4 {

[%clk 00:03:16]

} {

[%emt 00:00:15]

} Bxf4 {

[%clk 00:20:14]

} {

[%emt 00:00:08]

} 53. Bc3 {

[%clk 00:03:33]

} {

[%emt 00:00:12]

} Kf5 {

[%clk 00:20:39]

} {

[%emt 00:00:05]

} 54. Bd4 {

[%clk 00:03:42]

} {

[%emt 00:00:21]

} Ke4 {

[%clk 00:21:03]

} {

[%emt 00:00:06]

} 55. Bc3 {

[%clk 00:03:33]

} {

[%emt 00:00:39]

} d4 {

[%clk 00:21:26]

} {

[%emt 00:00:07]

} 56. Be1 {

[%clk 00:03:54]

} {

[%emt 00:00:09]

} d3 {

[%clk 00:21:47]

} {

[%emt 00:00:10]

} 57. Bc3 {

[%clk 00:04:16]

} {

[%emt 00:00:08]

} d2 {

[%clk 00:22:04]

} {

[%emt 00:00:13]

} 58. Bxd2 {

[%clk 00:04:40]

} {

[%emt 00:00:06]

} Bxd2 {

[%clk 00:22:29]

} {

[%emt 00:00:05]

} 59. Kxh2 {

[%clk 00:05:04]

} {

[%emt 00:00:05]

} Bxb4 {

[%clk 00:22:53]

} {

[%emt 00:00:07]

} 60. Kg1 {

[%clk 00:05:22]

} {

[%emt 00:00:11]

} Bxa5 {

[%clk 00:23:16]

} {

[%emt 00:00:08]

} 61. Kg2 {

[%clk 00:05:37]

} {

[%emt 00:00:14]

} b4 {

[%clk 00:23:29]

} {

[%emt 00:00:18]

} 62. Kh1 {

[%clk 00:05:55]

} {

[%emt 00:00:11]

} b3 {

[%clk 00:23:52]

} {

[%emt 00:00:07]

} 63. Kh2 {

[%clk 00:06:19]

} {

[%emt 00:00:06]

} b2 {

[%clk 00:24:14]

} {

[%emt 00:00:09]

} 64. Kg2 {

[%clk 00:06:44]

} {

[%emt 00:00:05]

} b1=Q {

[%clk 00:24:35]

} {

[%emt 00:00:09]

} 65. Kh2 {

[%clk 00:07:05]

} {

[%emt 00:00:09]

} Kf3 {

[%clk 00:24:48]

} {

[%emt 00:00:16]

} 66. Kh3 {

[%clk 00:07:26]

} {

[%emt 00:00:08]

} Qh1 {

[%clk 00:25:14]

} {

[%emt 00:00:05]

} 0-1